bitfinex-derivatives/quotes_ETHF0:USTF0_20260112
["timestamp","ask_amount","ask_price","bid_price","bid_amount"]
[1768234880224,0.97424861,3131.2,3129.1,0.12985539]
[1768234880532,0.97424861,3131.2,3129.2,0.12985539]
[1768234880729,0.9460015,3131.1,3129.2,0.12985539]
[1768234880933,0.9460015,3131.0,3129.7,0.15991]
[1768234881231,0.13924861,3131.1,3129.8,0.15991]
[1768234881532,0.94568525,3131.0,3129.8,0.15991]
[1768234881733,0.14169937,3131.1,3129.8,0.15991]
[1768234881933,0.94569653,3131.0,3129.8,0.15991]
[1768234882131,0.14169937,3131.1,3129.8,0.15991]
[1768234882533,0.00245076,3131.1,3130.1,0.15989]
[1768234882727,0.00245076,3131.1,3130.2,0.15989]
[1768234884137,0.14169937,3131.1,3130.2,0.15989]
[1768234887535,0.00245076,3131.1,3130.2,0.15989]
[1768234890746,0.00245076,3131.1,3130.3,0.15988]
[1768234891729,0.00245076,3131.1,3130.4,0.15988]
[1768234891945,0.13924861,3131.7,3130.1,0.00279602]
[1768234892842,0.14265588,3131.7,3130.1,0.00279602]
[1768234893348,0.13924861,3131.1,3129.3,3.1]
[1768234894344,0.13924861,3131.1,3129.9,0.1599]
[1768234895448,0.13437327,3130.6,3129.3,0.16329043]
[1768234895651,0.13437327,3130.6,3129.4,0.15993]
[1768234896745,0.13437327,3130.6,3129.5,0.15992]
[1768234900047,0.13437327,3130.6,3129.3,0.00336043]
[1768234900548,1.292,3130.7,3129.3,0.00336043]
[1768234900549,0.13437327,3130.4,3129.3,0.00336043]
[1768234901254,0.13437327,3130.2,3129.3,0.00336043]
[1768234901451,0.13437327,3130.2,3129.0,0.15995]
[1768234902251,0.13437327,3130.0,3129.0,0.15995]
[1768234902451,0.13437327,3130.0,3129.0,0.16277109]
[1768234902651,1.292,3129.9,3129.0,0.16277109]
[1768234902853,1.42637327,3129.9,3129.0,0.16277109]
[1768234904351,0.13437327,3129.7,3128.3,0.15999]
[1768234904649,0.13437327,3129.5,3127.4,3.26003]
[1768234904851,0.13437327,3129.3,3127.4,0.16003]
[1768234905050,0.13437327,3129.1,3127.4,0.16003]
[1768234905249,0.13437327,3128.9,3127.4,0.1628997]
[1768234905453,0.00367219,3129.1,3127.4,0.1628997]
[1768234905454,0.13437327,3128.7,3127.4,0.1628997]
[1768234907451,1.292,3128.6,3127.4,0.1628997]
[1768234907656,1.42637327,3128.6,3127.4,0.1628997]
[1768234910560,0.13437327,3128.6,3127.4,0.1628997]
[1768234910758,1.292,3128.5,3127.4,0.1628997]
[1768234911059,1.42637327,3128.5,3127.4,0.1628997]
[1768234911247,0.13437327,3128.4,3127.4,0.0028697]
[1768234911447,0.13437327,3128.4,3127.0,1.09742663]
[1768234911661,0.13437327,3128.4,3126.1,0.1601]
[1768234911662,0.13437327,3128.2,3126.1,0.1601]
[1768234912051,0.13437327,3128.0,3126.1,0.1601]
[1768234912454,0.13437327,3128.0,3126.1,0.16279421]
[1768234912856,3.51632924,3128.5,3126.1,0.16279421]
[1768234912857,0.13437327,3127.9,3126.5,0.16008]
[1768234913058,1.292,3127.8,3126.5,0.16008]
[1768234913259,1.42637327,3127.8,3126.5,0.16008]
[1768234914057,0.13437327,3127.7,3126.5,0.16008]
[1768234914458,1.42637327,3127.7,3126.5,0.16008]
[1768234914657,0.13437327,3127.6,3126.5,0.16008]
[1768234916566,1.292,3127.5,3126.5,0.16008]
[1768234916863,0.13437327,3127.6,3126.5,0.16008]
[1768234918263,0.13437327,3127.6,3126.1,0.00269421]
[1768234919371,0.13437327,3127.4,3126.1,0.00269421]
[1768234920562,0.13437327,3127.4,3126.3,0.16009]
[1768234921665,0.13437327,3127.4,3124.9,0.25435135]
[1768234921964,0.13437327,3126.8,3124.1,0.25777531]
[1768234922170,0.13437327,3126.6,3124.2,3.22520131]
[1768234922361,0.13437327,3126.6,3124.9,0.16016]
[1768234922761,0.13437327,3126.4,3124.9,0.16286603]
[1768234922960,1.292,3126.3,3124.9,0.00270603]
[1768234923158,0.13437327,3126.2,3124.9,0.00270603]
[1768234923462,4.493,3126.1,3124.9,0.16286603]
[1768234923659,0.13437327,3126.0,3124.9,0.00270603]
[1768234923862,0.13437327,3125.8,3123.8,0.16022]
[1768234924063,0.13437327,3125.8,3124.0,0.16021]
[1768234924368,0.13437327,3125.8,3123.2,3.1]
[1768234924369,0.13327239,3125.6,3123.7,0.13202772]
[1768234924577,0.13327239,3126.1,3124.6,0.16017]
[1768234924867,0.13327239,3126.1,3124.6,0.00351226]
[1768234925067,0.13327239,3126.5,3124.6,0.00351226]
[1768234925768,0.13327239,3126.3,3124.6,0.00351226]
[1768234925965,0.13327239,3126.1,3124.6,0.00351226]
[1768234928660,0.13327239,3126.0,3124.1,0.1602]
[1768234929587,0.13327239,3126.0,3122.2,2.61032924]
[1768234929588,0.13327239,3125.8,3123.3,0.16024]
[1768234929874,0.13327239,3125.5,3123.3,0.16024]
[1768234930277,0.13327239,3125.3,3123.3,0.16024]
[1768234930577,0.13327239,3124.7,3122.6,0.16028]
[1768234930764,0.13327239,3124.5,3122.6,0.16028]
[1768234930968,0.13327239,3124.3,3122.2,3.1]
[1768234931165,0.13327239,3124.3,3120.7,0.483]
[1768234931166,0.13327239,3123.2,3120.7,0.13587627]
[1768234931367,0.13327239,3123.8,3121.9,0.16031]
[1768234931565,0.18827239,3123.7,3121.5,0.13587627]
[1768234931776,0.00363613,3123.8,3122.6,0.16028]
[1768234931965,0.00363613,3123.8,3122.0,0.13587627]
[1768234932163,0.00363613,3123.8,3122.9,0.16026]
[1768234933371,0.00363613,3123.8,3123.3,0.16024]
[1768234933572,0.00363613,3123.8,3122.5,0.16028]
[1768234933970,0.00363613,3123.8,3122.5,3.1]
[1768234934176,0.764,3124.7,3123.3,0.16024]
[1768234934376,0.14373138,3124.6,3123.3,0.16024]
[1768234935079,0.14625109,3124.6,3123.3,0.16024]
[1768234935680,0.14625109,3124.6,3122.5,3.26028]
[1768234935880,0.14625109,3124.6,3122.5,0.16028]
[1768234936074,0.14373138,3124.4,3122.5,0.16028]
[1768234936378,0.14373138,3124.4,3122.0,0.13967437]
[1768234936569,4.496,3124.3,3122.7,0.16027]
[1768234937173,4.63973138,3124.3,3122.7,0.16027]
[1768234937586,4.63973138,3124.3,3123.1,0.16025]
[1768234937776,0.14373138,3124.3,3122.2,0.13967437]
[1768234938084,0.14373138,3124.3,3122.8,0.16026]
[1768234938281,0.14373138,3124.3,3122.9,0.16026]
[1768234938482,0.14373138,3124.3,3123.0,0.16026]
[1768234940186,0.14373138,3124.3,3122.3,3.1]
[1768234940187,1.29551971,3124.6,3122.4,0.13967437]
[1768234940373,0.00251971,3124.6,3123.2,0.13967437]
[1768234940578,0.14373138,3125.3,3123.3,0.13967437]
[1768234940876,0.14373138,3125.3,3123.4,0.13967437]
[1768234941077,4.128,3125.7,3124.5,0.16018]
[1768234941278,0.14373138,3125.8,3124.5,0.16018]
[1768234941786,0.00298633,3125.8,3124.5,0.00392775]
[1768234942684,0.00298633,3125.8,3124.9,0.16016]
[1768234944688,0.00298633,3125.8,3125.1,0.16015]
[1768234947084,0.00298633,3125.8,3124.5,0.00392775]
[1768234947085,0.14671771,3125.8,3124.6,0.16018]
[1768234947385,0.14671771,3125.8,3124.5,0.00392775]
[1768234948085,0.14373138,3125.6,3124.5,0.00392775]
[1768234948288,0.14373138,3125.4,3124.5,0.00392775]
[1768234948590,0.00479822,3125.4,3124.5,0.00392775]
[1768234948791,0.00479822,3125.4,3124.6,0.16017]
[1768234949182,0.00479822,3125.4,3124.7,0.16017]
[1768234949384,0.00298633,3125.8,3124.9,0.16016]
[1768234949585,0.00298633,3125.8,3124.7,0.00479822]
[1768234949780,0.00298633,3125.8,3125.1,0.16015]
[1768234951696,0.00298633,3125.8,3124.7,0.00479822]
[1768234951994,0.00298633,3125.8,3125.3,0.16014]
[1768234952796,0.14373138,3126.9,3125.4,0.16013]
[1768234952995,5.59157329,3126.8,3125.4,0.16013]
[1768234953192,0.95284191,3126.7,3125.4,0.16013]
[1768234953494,0.95284191,3126.6,3125.4,0.16013]
[1768234953794,0.95284191,3126.5,3125.4,0.16013]
[1768234953997,0.95284191,3126.4,3125.4,0.16013]
[1768234954297,0.00228643,3126.6,3125.4,0.16013]
[1768234954498,0.9525348,3126.5,3125.4,0.16013]
[1768234954793,0.00228643,3126.6,3125.4,0.16013]
[1768234954993,0.9525255,3126.5,3124.7,0.00479822]
[1768234955194,0.00228643,3126.6,3124.7,0.13692779]
[1768234955385,0.00228643,3126.6,3125.6,0.16012]
[1768234955590,0.00228643,3126.6,3125.8,0.16011]
[1768234958192,0.14630476,3127.0,3125.7,0.16012]
[1768234958601,0.14630476,3127.0,3125.8,0.16011]
[1768234959201,0.15033398,3127.0,3125.8,0.16011]
[1768234959502,0.15033398,3127.0,3125.9,0.16011]
[1768234960196,0.00402922,3127.0,3125.1,0.13086806]
[1768234960400,0.00402922,3127.0,3126.2,0.16009]
[1768234962504,0.00402922,3127.0,3126.3,0.16009]
[1768234962896,0.00402922,3127.0,3126.4,0.16008]
[1768234963095,0.14630476,3128.0,3125.7,0.1313107]
[1768234963297,1.006,3128.2,3127.0,0.16005]
[1768234964196,1.15482586,3128.2,3127.0,0.16334635]
[1768234964397,0.14630476,3128.1,3127.0,0.16334635]
[1768234965997,1.0085211,3128.2,3127.1,0.16004]
[1768234968805,1.0085211,3128.2,3127.4,0.16003]
[1768234969398,0.0025211,3128.2,3127.7,0.16001]
[1768234969712,1.291,3128.9,3127.9,0.16]
[1768234970006,1.291,3128.9,3127.1,0.13139731]
[1768234970007,3.201,3129.5,3127.5,0.13139731]
[1768234970201,3.34730476,3129.5,3128.2,0.15999]
[1768234970603,3.35058562,3129.5,3128.2,0.15999]
[1768234970905,0.14958562,3129.5,3128.3,0.15998]
[1768234972008,0.00328086,3129.5,3127.8,0.13145848]
[1768234972306,8.6e-07,3129.5,3128.3,0.13145848]
[1768234972503,8.6e-07,3129.5,3129.1,0.15994]
[1768234972701,0.14630562,3129.5,3127.6,3.1]
[1768234972905,0.14630476,3129.3,3127.7,0.16001]
[1768234973208,0.14630476,3128.8,3127.2,0.16004]
[1768234973603,0.14630476,3128.8,3126.8,0.13144919]
[1768234973797,0.14630476,3129.4,3127.1,6.13144919]
[1768234974003,0.14630476,3129.4,3127.8,0.16001]
[1768234974304,0.14630476,3129.4,3127.9,0.16001]
[1768234975411,0.14630476,3129.4,3128.0,0.16]
[1768234976907,0.14630476,3129.4,3127.2,3.1]
[1768234977309,0.14630476,3129.4,3127.8,0.16001]
[1768234977509,0.14630476,3129.4,3127.9,0.16001]
[1768234977710,0.14630476,3129.4,3128.1,0.15999]
[1768234977913,0.14630476,3129.4,3128.2,0.15999]
[1768234978507,0.14630476,3129.4,3127.5,0.16002]
[1768234978709,0.14630476,3129.4,3127.2,3.1]
[1768234979210,0.14630476,3129.4,3127.9,0.16]
[1768234979404,0.14630476,3129.4,3127.2,3.1]
[1768234979405,0.14630476,3129.3,3128.2,0.15999]
[1768234979710,8.6e-07,3129.5,3128.2,0.15999]
[1768234980606,8.6e-07,3129.5,3127.3,0.11801925]
[1768234980806,8.6e-07,3129.5,3128.5,0.15997]
[1768234981006,8.6e-07,3129.5,3127.6,0.11801925]
[1768234981207,8.6e-07,3129.5,3128.0,0.16]
[1768234981810,8.6e-07,3129.5,3128.1,0.15999]
[1768234984608,1.29,3129.4,3128.1,0.15999]
[1768234985712,1.42956014,3129.4,3128.1,0.15999]
[1768234986020,0.13956014,3129.4,3128.3,0.15998]
[1768234986215,8.6e-07,3129.5,3127.7,2.08412978]
[1768234986420,8.6e-07,3129.5,3128.6,0.15997]
[1768234986713,8.6e-07,3129.5,3127.9,0.11703839]
[1768234986915,8.6e-07,3129.5,3129.1,0.15994]
[1768234988419,0.13956014,3130.1,3129.1,0.15994]
[1768234989315,0.9520477,3130.0,3129.1,0.15994]
[1768234989517,0.00330926,3130.0,3129.1,0.15994]
[1768234991213,0.00330926,3130.0,3128.5,0.12483549]
[1768234991412,0.13956014,3130.6,3129.5,0.15992]
[1768234991611,0.95274666,3130.5,3129.5,0.15992]
[1768234991811,0.95274666,3130.4,3129.5,0.15992]
[1768234992122,0.95274666,3130.3,3129.6,0.15992]
[1768234992419,0.00364134,3130.3,3129.6,0.16365192]
[1768234993420,0.13710437,3130.3,3129.6,0.16365192]
[1768234994010,0.13710437,3130.3,3129.1,0.15994]
[1768234994223,0.13346303,3130.0,3128.6,0.15997]
[1768234994419,1.96709139,3130.1,3128.6,0.15997]
[1768234994420,0.13346303,3129.8,3128.6,0.15997]
[1768234994630,0.13346303,3129.6,3128.6,0.15997]
[1768234995317,0.9540456,3129.5,3128.7,0.15997]
[1768234995523,1.42346303,3130.0,3128.6,0.00385638]
[1768234995720,1.08746449,3129.9,3128.6,0.00385638]
[1768234995916,0.13346303,3129.7,3128.6,0.00385638]
[1768234996121,1.08748191,3129.6,3128.6,0.00385638]
[1768234996315,0.13346303,3129.6,3128.6,0.00385638]
[1768234996716,1.42346303,3130.0,3128.8,0.15996]
[1768234996921,0.95442536,3129.9,3129.2,0.15994]
[1768234997123,0.13710437,3130.3,3129.2,0.15994]
[1768234997422,0.13346303,3130.1,3129.2,0.15994]
[1768234997718,0.95419225,3130.0,3129.2,0.15994]
[1768235008727,0.95419225,3129.9,3129.2,0.15994]
[1768235008933,0.13710437,3130.3,3129.2,0.15994]
[1768235009231,1.08966218,3130.2,3129.2,0.15994]
[1768235009432,0.95619915,3130.1,3129.2,0.15994]
[1768235011133,0.13346303,3130.0,3129.2,0.15994]
[1768235011333,0.95619915,3129.9,3129.2,0.15994]
[1768235011630,0.13346303,3129.8,3128.6,0.16382638]
[1768235011834,1.08966218,3129.7,3128.6,0.16382638]
[1768235012028,0.95619915,3129.6,3128.6,0.16382638]
[1768235012233,0.95619915,3129.6,3128.6,0.00385638]
[1768235012438,0.13346303,3130.2,3128.6,6.00385638]
[1768235012634,0.95677673,3130.1,3128.6,0.00385638]
[1768235012939,0.95677673,3130.0,3128.6,0.00385638]
[1768235013123,1.42246303,3130.2,3128.6,0.00385638]
[1768235013329,0.95699637,3130.1,3128.6,0.00385638]
[1768235013636,0.95699637,3130.0,3129.2,0.15994]
[1768235013827,0.00364134,3130.3,3129.3,0.15993]
[1768235014026,0.95699061,3130.2,3129.3,0.15993]
[1768235014226,0.95699061,3130.1,3129.3,0.15993]
[1768235014431,0.95699061,3130.0,3129.3,0.15993]
[1768235014736,0.00364134,3130.3,3129.3,0.15993]
[1768235015037,1.10296108,3130.2,3129.3,0.15993]
[1768235015337,0.14566722,3130.2,3129.3,0.15993]
[1768235016235,0.00364134,3130.3,3128.7,3.1]
[1768235016440,0.00364134,3130.3,3129.6,0.15992]
[1768235019833,0.00364134,3130.3,3128.9,3.1]
[1768235019834,0.14566722,3131.3,3130.0,0.1599]
[1768235020033,0.95697291,3131.2,3129.4,0.12360492]
[1768235020229,1.43466722,3131.3,3129.4,0.12360492]
[1768235020441,1.43466722,3131.3,3130.2,0.15989]
[1768235020735,1.43721629,3131.3,3130.4,0.15988]
[1768235021041,0.00254907,3131.3,3130.4,0.15988]
[1768235021928,0.00254907,3131.3,3129.8,0.12503045]
[1768235022137,1.289,3131.9,3129.8,0.12503045]
[1768235022138,1.289,3131.9,3130.7,0.15986]
[1768235022339,1.289,3131.9,3130.8,0.15986]
[1768235022735,1.43466722,3131.9,3130.8,0.15986]
[1768235022934,1.289,3131.9,3130.9,0.15985]
[1768235023135,1.29296456,3131.9,3130.9,0.15985]
[1768235025134,0.00396456,3131.9,3130.9,0.15985]
[1768235026049,0.00396456,3131.9,3131.0,0.15985]
[1768235027241,0.14566722,3132.9,3130.6,0.11953035]
[1768235027546,0.14566722,3132.9,3131.4,0.15983]
[1768235028341,0.148146,3132.9,3131.5,0.15982]
[1768235029952,0.00247878,3132.9,3131.0,0.12009507]
[1768235030147,0.84963981,3133.1,3132.4,0.15977]
[1768235030847,0.14566722,3133.0,3131.8,0.15981]
[1768235031054,0.14902427,3133.0,3131.8,0.00235365]
[1768235031745,1.43702427,3133.0,3131.8,0.00235365]
[1768235032044,0.14566722,3132.9,3131.8,0.00235365]
[1768235032452,0.14566722,3132.9,3131.8,0.16216365]
[1768235033556,0.14566722,3132.9,3131.8,0.00235365]
[1768235034755,0.14566722,3132.8,3131.0,0.15985]
[1768235035857,0.14566722,3132.8,3131.1,0.15984]
[1768235036355,0.14566722,3132.8,3131.2,0.15984]
[1768235038755,0.14566722,3132.6,3131.2,0.15984]
[1768235039356,0.14566722,3132.6,3131.3,0.15983]
[1768235039560,0.14566722,3132.6,3131.4,0.15983]
[1768235040453,0.00335705,3133.0,3131.7,0.15981]
[1768235040752,0.00335705,3133.0,3131.1,0.11555298]
[1768235040958,0.00335705,3133.0,3131.3,0.11555298]
[1768235041357,0.00335705,3133.0,3131.4,3.1]
[1768235041558,0.14902427,3133.0,3131.4,3.1]
[1768235041958,0.14902427,3133.0,3131.4,3.25983]
[1768235042351,0.14566722,3132.8,3131.4,3.25983]
[1768235042564,1.43266722,3132.8,3131.4,3.25983]
[1768235042863,1.43266722,3132.8,3131.0,0.00266896]
[1768235042864,0.00335705,3133.0,3131.7,0.15981]
[1768235043049,0.14902427,3133.0,3131.7,0.15981]
[1768235043256,0.14902427,3133.0,3131.0,0.16251896]
[1768235043452,0.14566722,3132.5,3131.0,0.00266896]
[1768235043663,0.30543722,3132.5,3131.0,0.00266896]
[1768235043957,0.14566722,3132.4,3131.0,0.00266896]
[1768235044357,0.13275422,3132.3,3131.0,0.00266896]
[1768235045054,0.13275422,3132.3,3130.4,0.15988]
[1768235046151,0.13275422,3132.3,3130.4,0.16393961]
[1768235046752,0.13275422,3132.1,3130.4,0.16393961]
[1768235046954,0.13275422,3131.9,3130.4,0.16393961]
[1768235048259,0.13275422,3131.9,3129.0,0.11746]
[1768235048260,0.13275422,3131.6,3129.0,0.11746]
[1768235048456,5.07888517,3132.4,3129.9,0.1599]
[1768235048457,0.13275422,3131.5,3129.9,0.1599]
[1768235048658,1.41975422,3131.5,3129.9,0.1599]
[1768235049162,1.41975422,3131.5,3129.9,0.16251991]
[1768235049464,0.13275422,3131.4,3129.9,0.16251991]
[1768235049857,0.13275422,3131.4,3130.0,0.1599]
[1768235050871,1.41975422,3131.4,3130.0,0.1599]
[1768235051771,0.13275422,3131.3,3130.0,0.1599]
[1768235053657,1.287,3131.2,3130.0,0.1599]
[1768235054366,0.13338692,3131.1,3130.0,0.1599]
[1768235054867,1.287,3131.3,3130.0,0.1599]
[1768235057272,1.42038692,3131.3,3130.0,0.1599]
[1768235057573,0.13338692,3131.2,3130.0,0.1599]
[1768235058668,0.13338692,3131.2,3128.7,0.12088812]
[1768235058669,0.13338692,3131.1,3129.3,0.15993]
[1768235059375,0.13338692,3130.9,3129.4,0.15993]
[1768235059569,1.287,3130.8,3129.5,0.15992]
[1768235059872,1.42298412,3130.8,3129.5,0.1630435]
[1768235060077,0.13338692,3130.7,3129.5,0.1630435]
[1768235060561,1.42038692,3130.7,3129.5,0.1630435]
[1768235060757,0.13338692,3130.7,3129.5,0.1630435]
[1768235063568,0.13338692,3130.7,3128.9,0.15996]
[1768235064858,0.13338692,3130.7,3128.9,0.16230543]
[1768235065258,0.13338692,3130.7,3128.9,0.00234543]
[1768235065474,0.0025972,3130.8,3129.5,0.15992]
[1768235065767,1.42298412,3130.8,3129.5,0.15992]
[1768235066673,0.13598412,3130.8,3129.6,0.15992]
[1768235066869,0.0025972,3130.8,3129.9,0.1599]
[1768235067075,0.0025972,3130.8,3130.1,0.15989]
[1768235068469,3.33138692,3131.2,3129.3,0.12133147]
[1768235068673,3.33138692,3131.2,3130.0,0.15989]
[1768235069373,3.33461273,3131.2,3130.0,0.15989]
[1768235070575,3.33461273,3131.2,3130.1,0.15989]
[1768235070779,0.00322581,3131.2,3130.2,0.15989]
[1768235071177,0.00322581,3131.2,3129.5,0.11914783]
[1768235071481,0.00322581,3131.2,3129.6,3.1]
[1768235071982,0.00322581,3131.2,3129.6,3.21914783]
[1768235072582,0.00322581,3131.2,3129.6,3.1]
[1768235073079,0.00322581,3131.2,3130.3,0.15988]
[1768235073279,0.1598,3132.0,3129.6,3.1]
[1768235073280,0.13338692,3131.8,3130.6,0.15987]
[1768235073479,0.13338692,3131.8,3129.7,0.11930239]
[1768235073480,3.33038692,3132.2,3130.7,0.15986]
[1768235073784,0.13338692,3132.1,3130.1,0.11930239]
[1768235073985,0.13338692,3132.6,3131.0,0.15985]
[1768235074176,4.12707403,3133.1,3129.6,5.32253649]
[1768235074177,4.61738692,3132.5,3130.3,0.11906798]
[1768235074483,0.13595935,3132.4,3131.0,0.15985]
[1768235075279,0.13595935,3132.3,3131.0,0.15985]
[1768235075880,0.13595935,3132.3,3130.4,3.1]
[1768235076090,0.00404704,3132.5,3131.3,0.15983]
[1768235076272,0.00404704,3132.5,3131.3,0.16251609]
[1768235076477,0.00404704,3132.5,3131.4,0.15983]
[1768235077175,0.00404704,3132.5,3131.3,0.00268609]
[1768235077783,0.00404704,3132.5,3131.7,0.15981]
[1768235077974,0.14000639,3132.5,3131.7,0.15981]
[1768235083085,0.00404704,3132.5,3132.0,0.15979]
[1768235084493,0.00404704,3132.5,3131.3,0.16251609]
[1768235084684,0.00404704,3132.5,3131.5,0.15982]
[1768235084992,0.00404704,3132.5,3131.6,0.15982]
[1768235085190,0.00404704,3132.5,3131.6,3.25982]
[1768235085390,0.13595935,3133.0,3131.8,0.15981]
[1768235085594,0.13595935,3132.9,3131.8,0.15981]
[1768235086286,0.13595935,3132.9,3132.0,0.1598]
[1768235086485,0.13893095,3132.9,3132.0,0.1598]
[1768235088591,0.0029716,3132.9,3132.1,0.15979]
[1768235088988,0.0029716,3132.9,3131.6,1.9596847]
[1768235089185,0.84963981,3133.1,3132.4,0.15977]
[1768235090297,0.85356075,3133.1,3132.4,0.15977]
[1768235092995,0.9895201,3133.1,3132.4,0.15977]
[1768235094489,0.85356075,3133.1,3131.7,3.21609182]
[1768235094890,0.85356075,3133.1,3132.6,0.15977]
[1768235095091,0.53036075,3133.1,3132.0,1.9596847]
[1768235095297,0.53036075,3133.1,3132.7,0.15976]
[1768235096400,0.20110075,3133.1,3132.9,0.15975]
[1768235097298,0.3370601,3133.1,3132.3,0.15978]
[1768235097501,0.13595935,3133.0,3132.3,0.15978]
[1768235097901,6.13595935,3133.0,3131.3,0.00268609]
[1768235098105,0.13595935,3132.9,3131.8,0.1598]
[1768235098309,0.13595935,3132.9,3131.9,0.1598]
[1768235098505,1.285,3132.8,3131.9,0.1598]
[1768235098800,0.13595935,3132.9,3132.2,0.15978]
[1768235099510,0.20110075,3133.1,3132.3,0.15978]
[1768235099804,0.20110075,3133.1,3132.4,0.15977]
[1768235100599,7.5e-07,3133.1,3131.7,1.9596847]
[1768235100798,7.5e-07,3133.1,3132.7,0.15976]
[1768235101195,7.5e-07,3133.1,3132.8,0.15975]
[1768235101407,7.5e-07,3133.1,3132.9,0.15975]
[1768235101901,0.13595935,3133.9,3133.0,0.15974]
[1768235102106,1.285,3134.1,3132.2,1.9596847]
[1768235102305,0.13595935,3134.3,3132.2,2.07278144]
[1768235102493,1.131,3134.2,3132.3,3.1]
[1768235102698,0.13595935,3134.3,3133.2,0.15974]
[1768235102895,0.00235222,3134.3,3132.7,1.9596847]
[1768235103304,0.00235222,3134.3,3132.5,1.9596847]
[1768235103807,0.00235222,3134.3,3133.2,0.15974]
[1768235104013,1.9596847,3133.8,3132.4,0.15977]
[1768235104311,1.42095935,3133.7,3132.3,3.1]
[1768235104600,1.42999968,3134.2,3132.9,0.15975]
[1768235104806,0.14499968,3134.1,3132.9,0.15975]
[1768235105000,0.00235222,3134.3,3132.7,1.9596847]
[1768235105402,0.00235222,3134.3,3133.2,1.9596847]
[1768235105597,0.00235222,3134.3,3132.8,1.9596847]
[1768235105798,0.00235222,3134.3,3133.3,1.9596847]
[1768235105999,0.74861663,3134.8,3133.9,1.9596847]
[1768235106307,0.14499968,3135.7,3134.6,0.15966]
[1768235107097,0.14901462,3135.7,3134.6,0.16315451]
[1768235108005,0.14499968,3135.6,3133.9,0.1597]
[1768235108507,0.14499968,3135.6,3134.0,3.1]
[1768235108707,0.14499968,3135.4,3134.0,3.1]
[1768235108907,0.14499968,3135.4,3134.0,3.10331445]
[1768235109109,0.14499968,3135.4,3134.0,0.00331445]
[1768235109497,2.10468438,3135.4,3134.0,0.00331445]
[1768235109807,0.14499968,3135.2,3133.2,0.15974]
[1768235110004,0.14499968,3135.2,3133.3,0.15973]
[1768235110308,0.14499968,3134.8,3133.3,0.15973]
[1768235110698,0.14499968,3134.8,3133.3,0.16287153]
[1768235112001,0.14499968,3134.7,3132.5,5.0596847]
[1768235112201,0.14499968,3134.7,3132.6,0.12502075]
[1768235113208,0.14499968,3134.7,3132.6,0.00303274]
[1768235113410,0.14499968,3134.7,3132.9,0.15975]
[1768235115515,0.14499968,3134.7,3132.6,0.00303274]
[1768235115812,1.42899968,3134.7,3132.6,0.12650138]
[1768235116015,0.14103345,3134.6,3133.3,0.15973]
[1768235116202,0.14103345,3134.6,3133.4,0.15973]
[1768235117717,0.14103345,3134.6,3132.6,0.12650138]
[1768235118215,0.14103345,3134.6,3133.3,0.15973]
[1768235118606,0.14103345,3134.6,3133.4,0.15972]
[1768235119310,0.14103345,3134.6,3133.5,0.15972]
[1768235119910,0.14103345,3134.5,3133.0,0.15975]
[1768235120319,0.14103345,3134.5,3133.1,0.15974]
[1768235121019,0.14103345,3134.5,3132.6,0.16279274]
[1768235121412,0.14103345,3134.5,3132.7,0.15976]
[1768235122216,0.14103345,3134.0,3132.7,0.15976]
[1768235123912,0.14103345,3134.0,3132.6,0.00303274]
[1768235124222,0.14103345,3133.9,3132.6,0.00303274]
[1768235124418,0.14103345,3133.9,3132.2,0.15978]
[1768235124616,0.14103345,3133.9,3131.5,3.1]
[1768235124822,0.14103345,3133.9,3132.3,0.15978]
[1768235125423,0.14103345,3133.9,3132.3,0.16387875]
[1768235127116,0.14103345,3133.9,3132.3,0.00409875]
[1768235127317,0.14103345,3133.9,3132.8,0.15975]
[1768235128422,0.14103345,3133.9,3132.9,0.15975]
[1768235128622,0.14103345,3134.4,3133.0,0.15975]
[1768235128823,1.42503345,3134.4,3133.1,0.15974]
[1768235129124,1.42503345,3134.4,3133.2,0.15973]
[1768235129322,1.42503345,3134.4,3133.3,0.15973]
[1768235129621,1.42503345,3134.4,3133.5,0.15972]
[1768235129622,1.284,3134.4,3133.5,0.15972]
[1768235130224,0.14103345,3134.9,3133.5,0.15972]
[1768235130419,0.14103345,3134.9,3133.6,0.15971]
[1768235132021,0.14103345,3134.9,3132.9,3.1]
[1768235132225,0.14103345,3134.9,3133.1,1.9596847]
[1768235132726,0.14103345,3135.4,3134.3,0.15968]
[1768235133128,0.14103345,3135.4,3134.4,0.15967]
[1768235133628,0.00401494,3135.7,3134.4,0.15967]
[1768235133826,0.00401494,3135.7,3134.6,0.15966]
[1768235134027,0.00401494,3135.7,3134.6,0.16367421]
[1768235134325,0.14612487,3135.7,3134.6,0.16367421]
[1768235134625,0.14612487,3135.7,3134.7,0.15966]
[1768235135129,0.00401494,3135.7,3135.2,0.15963]
[1768235135526,1.42610993,3136.2,3134.6,0.00401421]
[1768235135527,1.284,3136.2,3134.6,0.00401421]
[1768235135726,1.284,3136.2,3135.1,0.15964]
[1768235136625,0.14210993,3136.1,3135.1,0.15964]
[1768235137324,0.14210993,3136.1,3134.6,0.00401421]
[1768235137519,0.14210993,3136.1,3134.7,3.1]
[1768235138228,0.14210993,3136.1,3134.6,0.16367421]
[1768235138229,0.14210993,3135.8,3134.6,0.16367421]
[1768235138928,1.42610993,3135.8,3134.6,0.16367421]
[1768235139332,0.14210993,3135.7,3134.6,0.16367421]
[1768235139730,0.14210993,3135.6,3133.8,0.1597]
[1768235140126,0.14210993,3135.6,3134.0,0.15969]
[1768235140334,0.14210993,3135.6,3133.6,3.1]
[1768235140631,0.14210993,3135.6,3133.6,5.06305132]
[1768235140834,0.14454881,3136.2,3134.8,0.15965]
[1768235141030,0.14454881,3136.2,3134.9,0.15965]
[1768235141434,0.14454881,3136.2,3134.1,2.08674551]
[1768235141635,0.14454881,3136.2,3134.9,0.15965]
[1768235141931,0.14454881,3136.2,3134.2,0.12706081]
[1768235142133,0.14454881,3136.2,3135.2,0.15963]
[1768235142534,0.14454881,3136.2,3134.7,0.15966]
[1768235142835,0.14454881,3136.2,3134.8,3.1]
[1768235143030,0.14454881,3136.2,3134.7,0.15966]
[1768235143429,0.14454881,3136.2,3133.8,0.12882555]
[1768235143627,0.14454881,3136.2,3134.8,0.15965]
[1768235145323,0.14454881,3136.2,3133.9,3.1]
[1768235145529,0.14454881,3136.2,3133.9,3.22876426]
[1768235145727,0.14454881,3136.2,3134.9,0.15965]
[1768235146627,0.14454881,3136.2,3134.0,0.12916045]
[1768235146823,0.14454881,3136.2,3135.1,0.15964]
[1768235147030,0.14454881,3136.2,3133.9,3.1]